[Event "ESP-chT Honor Division 2022"]
[Site "Linares"]
[Date "2022.09.21"]
[Round "5.21"]
[White "Pichot, Alan"]
[Black "Martinez Fernandez, Adrian"]
[Result "1-0"]
[ECO "B50"]
[WhiteElo "2641"]
[BlackElo "2338"]
[Annotator "TA"]
[PlyCount "115"]
[EventDate "2022.09.17"]
[EventType "team-tourn"]
[EventCountry "ESP"]
[SourceTitle "playchess.com"]
[Source "ChessBase"]
[SourceQuality "1"]
[TimeControl "5400+30"]

{[%evp 10,115,67,10,22,20,43,38,31,27,23,0,33,34,47,49,77,75,79,56,65,58,64,50,56,50,53,33,53,52,46,58,50,39,50,52,53,58,52,61,93,100,101,22,95,98,236,226,389,397,372,375,394,401,405,401,362,356,512,529,518,495,650,648,615,611,677,654,658,602,529,499,778,784,731,810,769,733,825,840,1226,1347,897,825,1107,988,12840,611,577,550,478,452,660,624,1627,1175,2606,2604,1836,5720,12837,12838,12844,12841,12845,12846,12847,12847]} 1. e4 {[%emt 0:00:33]} c5 {[%emt 0:00:06]} 2. Nf3 {[%emt 0:00:10]} d6 {[%emt 0:00:06]} 3. Nc3 {[%emt 0:00:17]} Nc6 {[%emt 0:11:12]} 4. d4 {[%emt 0:00:34]} cxd4 {[%emt 0:00:13]} 5. Nxd4 {[%emt 0:00:06]} g6 {[%emt 0:00:14]} 6. Nd5 {[%emt 0:06:34]} (6. Be3 $14) 6... e6 {[%emt 0:11:09] B34: Sicilian: Accelerated Dragon with 5 Nc3: sidelines.} 7. Nc3 {[%emt 0:01:50]} Nf6 {[%emt 0:06:23]} 8. Be2 {[%emt 0:07:15]} a6 {[%emt 0:00:57] White is slightly better.} 9. O-O {[%emt 0:03:29]} Bg7 {[%emt 0:02:39]} 10. Bg5 {[%emt 0:08:13] [#] aiming for Nxc6.} Bd7 $146 {[%emt 0:14:01]} ({Predecessor:} 10... Qc7 11. Nb3 O-O 12. a4 b6 13. Qd2 Bb7 14. Rad1 Ne8 15. f4 Ne7 16. Nd4 h6 {1-0 (33) Tal,M-Parma,B Moscow 1971}) 11. Nb3 {[%emt 0:04:07]} Qc7 {[%emt 0:01:00]} 12. Qd2 {[%emt 0:00:37]} Rd8 {[%emt 0:03:58]} 13. Qf4 {[%emt 0:03:14]} Ke7 {[%emt 0:05:30]} 14. Qd2 {[%emt 0:08:06]} h6 {[%emt 0:03:06]} 15. Be3 {[%emt 0:01:43]} b5 {[%emt 0:05:17]} 16. a3 {[%emt 0:07:07]} Bc8 {[%emt 0:03:13]} 17. Rad1 {[%emt 0:02:11]} Kf8 {[%emt 0:02:32]} 18. Nd4 {[%emt 0:08:39]} Kg8 {[%emt 0:09:50]} 19. Nxc6 {[%emt 0:05:25]} Qxc6 {[%emt 0:00:04]} 20. e5 {[%emt 0:00:06]} Ne8 {[%emt 0:00:08]} 21. f4 {[%emt 0:00:07]} Bb7 {[%emt 0:03:50][%csl Gb7][%cal Rc6g2]} 22. Bf3 {[%emt 0:01:50][%cal Be2f3,Bf3e4,Be4d3][%mdl 32] Active counter play!} Qc7 {[%emt 0:00:07]} 23. Ne4 {[%emt 0:04:01][%cal Re5d6]} Bxe4 {[%emt 0:05:07]} 24. Bxe4 {[%emt 0:00:19]} d5 {[%emt 0:00:02]} 25. Bd3 {[%emt 0:00:42]} Bf8 {[%emt 0:03:39]} 26. Qf2 {[%emt 0:05:41]} (26. g4 $16) 26... Rc8 {[%emt 0:00:17]} (26... h5 $1 $11) 27. g4 $36 {[%emt 0:01:33][%cal Bg2g4,Bg4f5][%mdl 2080] Keeping Black busy.} Bc5 {[%emt 0:02:22] [#] This move loses the game for Black.} (27... Ng7 $16 {might work better.}) 28. f5 $1 $18 {[%emt 0:00:17]} gxf5 $2 {[%emt 0:00:09]} (28... exf5 {is a better defense.} 29. gxf5 g5) 29. gxf5 {[%emt 0:00:11]} Bxe3 {[%emt 0:00:07]} 30. Qxe3 {[%emt 0:00:05]} Qc5 {[%emt 0:00:13]} 31. Qxc5 {[%emt 0:00:54]} Rxc5 {[%emt 0:00:04]} 32. fxe6 {[%emt 0:04:28]} fxe6 {[%emt 0:00:04]} 33. Rf3 {[%emt 0:00:07] Black must now prevent Rdf1.} Rh7 {[%emt 0:08:08]} (33... Ng7 $142 34. Rf6 h5) 34. Bxh7+ {[%emt 0:03:04] White is clearly winning.} Kxh7 {[%emt 0:00:04]} 35. Rc3 {[%emt 0:00:22]} Rxc3 {[%emt 0:00:59]} 36. bxc3 {[%emt 0:00:05][%mdl 4096] Endgame KR-KN} Ng7 {[%emt 0:00:42]} 37. Kf2 {[%emt 0:00:17]} Kg6 {[%emt 0:00:24]} 38. Rg1+ {[%emt 0:00:14]} Kf7 {[%emt 0:00:03]} 39. Ke3 {[%emt 0:00:13]} Nf5+ {[%emt 0:00:04]} 40. Kd3 {[%emt 0:00:12]} h5 {[%emt 0:00:34]} (40... Ne7 $142 41. Rf1+ Nf5) 41. a4 {[%emt 0:00:29]} bxa4 {[%emt 0:00:12]} 42. Ra1 {[%emt 0:00:07]} Ne7 {[%emt 0:00:57]} 43. Ke3 {[%emt 0:00:17]} Kg6 {[%emt 0:01:37]} 44. Kf4 {[%emt 0:00:29]} Kh6 {[%emt 0:00:06]} 45. Rxa4 {[%emt 0:00:27]} Ng6+ {[%emt 0:00:01]} 46. Ke3 {[%emt 0:00:53]} Kg5 {[%emt 0:00:09]} 47. c4 {[%emt 0:00:47] cxd5 is the strong threat.} Nxe5 {[%emt 0:01:21]} 48. c5 {[%emt 0:01:27]} (48. cxd5 $142 exd5 49. Kd4) 48... a5 {[%emt 0:00:03]} 49. h4+ {[%emt 0:00:52]} Kf6 {[%emt 0:00:16]} 50. Ra1 {[%emt 0:00:55]} Ke7 {[%emt 0:00:52]} (50... Nc6 $142 51. Rg1 Ne5) 51. Kf4 {[%emt 0:02:16]} Nc4 {[%emt 0:00:11]} 52. Kg5 {[%emt 0:00:15]} e5 {[%emt 0:01:00]} 53. Kxh5 {[%emt 0:00:21] And now Kg5 would win.} d4 {[%emt 0:00:04]} 54. Kg5 {[%emt 0:00:52] Threatens to win with h5.} e4 {[%emt 0:00:14]} 55. Kf4 {[%emt 0:01:39]} d3 {[%emt 0:01:36]} 56. Kxe4 {[%emt 0:00:42]} dxc2 {[%emt 0:00:32]} 57. Kd3 {[%emt 0:00:20]} Na3 {[%emt 0:00:05]} 58. h5 {[%emt 0:00:48] Weighted Error Value: White=0.24 (precise) /Black=0.35} 1-0

[Event "ESP-chT Honor Division 2022"]
[Site "Linares"]
[Date "2022.09.21"]
[Round "5.22"]
[White "Jimenez Ruano, Adrian"]
[Black "Stefanova, Antoaneta"]
[Result "0-1"]
[ECO "D45"]
[WhiteElo "2264"]
[BlackElo "2472"]
[Annotator "TA"]
[PlyCount "55"]
[EventDate "2022.09.17"]
[EventType "team-tourn"]
[EventCountry "ESP"]
[SourceTitle "playchess.com"]
[Source "ChessBase"]
[SourceQuality "1"]
[TimeControl "5400+30"]

{[%evp 18,55,0,0,0,0,0,-2,6,-12,-8,-14,-26,-62,-44,-48,-40,-76,-66,-88,-73,-91,-14,-28,-27,-89,-91,-143,-159,-155,-154,-185,0,0,0,-102,-86,-250,-241,-236]} 1. d4 {[%emt 0:01:39]} d5 {[%emt 0:00:06]} 2. c4 {[%emt 0:00:15]} e6 {[%emt 0:00:05]} 3. Nc3 {[%emt 0:00:41]} c6 {[%emt 0:00:11]} 4. e3 {[%emt 0:06:36]} Nf6 {[%emt 0:04:10]} 5. Nf3 {[%emt 0:01:15]} Nbd7 {[%emt 0:03:05]} 6. Qc2 {[%emt 0:00:10]} Bd6 {[%emt 0:01:02]} 7. b3 {[%emt 0:00:05]} O-O {[%emt 0:06:58]} 8. Be2 {[%emt 0:00:12]} b6 {[%emt 0:10:23]} 9. O-O {[%emt 0:00:05]} Bb7 {[%emt 0:00:02]} 10. Bb2 {[%emt 0:00:03]} Re8 {[%emt 0:06:03] D45: Semi-Slav: 5 e3.} 11. Rfe1 {[%emt 0:01:15]} Rc8 {[%emt 0:02:02]} 12. Rad1 {[%emt 0:02:01]} Qe7 {[%emt 0:02:46] The position is equal.} 13. Bf1 {[%emt 0:02:14]} c5 {[%emt 0:05:16] [#]} 14. Nb5 $146 {[%emt 0:24:10]} ({Predecessor:} 14. cxd5 Nxd5 15. Nxd5 Bxd5 16. Qe2 c4 17. e4 c3 18. exd5 cxb2 19. Qxb2 Bb4 20. Re3 {0-1 (39) Gurevich,D (2363)-Abdrlauf,E (2455) Chess.com INT 2022}) 14... Bb8 {[%emt 0:03:42]} 15. dxc5 {[%emt 0:16:10]} Nxc5 {[%emt 0:04:41]} 16. cxd5 {[%emt 0:05:08]} Bxd5 {[%emt 0:06:52]} 17. Qe2 {[%emt 0:00:22]} Nce4 {[%emt 0:03:30]} 18. h3 {[%emt 0:09:34] Prevents Ng4.} a6 {[%emt 0:01:34]} 19. Nbd4 {[%emt 0:01:11]} e5 {[%emt 0:04:40] Black has more active pieces.} (19... b5 $17 20. Rc1 Qd6) 20. Nf5 $11 {[%emt 0:10:43]} Qe6 {[%emt 0:00:13]} 21. g4 {[%emt 0:00:01]} (21. N3h4 $1 $11 {keeps the balance.}) 21... h5 $17 {[%emt 0:09:28]} 22. Nh2 {[%emt 0:09:57] [#]} (22. N3h4 $142) 22... hxg4 $1 {[%emt 0:06:08]} 23. hxg4 {[%emt 0:00:12]} g6 $36 {[%emt 0:00:03][%mdl 2048] Black is on the roll.} 24. Nh4 {[%emt 0:01:45]} Nc3 $2 {[%emt 0:01:53]} (24... Bd6 $19 {White must now prevent ...Bb4.} 25. f3 Ng5) 25. Bxc3 $11 {[%emt 0:00:23]} Rxc3 {[%emt 0:00:01]} 26. Qd2 {[%emt 0:03:00]} (26. g5 $1 $11 {remains equal.} Ne4 27. f3 Nxg5 28. Qg2) 26... Rc5 $17 {[%emt 0:11:18] [#] Hoping for ...e4.} 27. b4 $2 {[%emt 0:01:43]} (27. f3 $17 {was the only defense.}) 27... Ne4 $19 {[%emt 0:00:05]} 28. Qd3 {[%emt 0:01:11] Weighted Error Value: White=0.37/Black=0.19 (very precise)} 0-1

[Event "ESP-chT Honor Division 2022"]
[Site "Linares"]
[Date "2022.09.21"]
[Round "5.23"]
[White "Garrido Outon, Alex"]
[Black "Rodriguez Redondo, Adhara"]
[Result "1/2-1/2"]
[ECO "C78"]
[WhiteElo "2411"]
[BlackElo "2112"]
[Annotator "TA"]
[PlyCount "81"]
[EventDate "2022.09.17"]
[EventType "team-tourn"]
[EventCountry "ESP"]
[SourceTitle "playchess.com"]
[Source "ChessBase"]
[SourceQuality "1"]
[TimeControl "5400+30"]

{[%evp 13,81,24,45,29,47,33,55,25,8,10,66,7,11,0,0,6,8,0,27,29,89,33,29,31,39,35,42,2,16,0,54,13,20,13,112,0,0,-4,0,0,0,-87,-86,-98,-94,-70,-74,-95,-85,-156,-147,-147,-140,-178,-83,-100,-97,-139,-9,-18,-18,-27,-17,-18,-9,-9,-9,0,12,0]} 1. e4 {[%emt 0:00:08]} e5 {[%emt 0:00:32]} 2. Nf3 {[%emt 0:00:10]} Nc6 {[%emt 0:00:26]} 3. Bb5 {[%emt 0:00:09]} a6 {[%emt 0:00:22]} 4. Ba4 {[%emt 0:00:08]} Nf6 {[%emt 0:00:05]} 5. O-O {[%emt 0:00:08]} Bc5 {[%emt 0:00:04]} 6. c3 {[%emt 0:01:07]} O-O {[%emt 0:00:15]} 7. d4 {[%emt 0:04:08]} Ba7 {[%emt 0:00:08]} 8. Bg5 {[%emt 0:00:50][%cal Bc1g5,Bg5h4,Bh4g3,Bg3h2][%mdl 32] C78: Ruy Lopez: Archangelsk and Möller Defences.} h6 {[%emt 0:00:26]} 9. Bh4 {[%emt 0:00:49]} exd4 {[%emt 0:00:19]} 10. Re1 {[%emt 0:01:25] And now e5 would win. White is slightly better.} d6 {[%emt 0:01:30]} 11. Bxc6 {[%emt 0:12:09]} bxc6 {[%emt 0:00:53]} (11... dxc3 $1 $11 12. Nxc3 (12. Bxf6 Qxf6 13. Nxc3 bxc6 $17) 12... bxc6) 12. cxd4 {[%emt 0:00:26]} ({Better is} 12. Nxd4 $14 Bd7 13. Nd2) 12... Bg4 $11 {[%emt 0:04:18] [#]} 13. Nc3 $146 {[%emt 0:02:29]} ({Predecessor:} 13. Qa4 Bxf3 14. gxf3 Qb8 15. Nd2 Qb5 16. Qxb5 axb5 17. Nb3 c5 18. dxc5 dxc5 19. Red1 {½-½ (48) Alekseev,E (2645)-Nozdrachev,V (2481) Yaroslavl 2019}) 13... g5 {[%emt 0:17:36]} 14. Bg3 {[%emt 0:00:13]} Nh5 {[%emt 0:06:12]} 15. Qd3 {[%emt 0:03:50]} Qf6 {[%emt 0:13:02]} 16. Rad1 {[%emt 0:03:42]} Qg6 {[%emt 0:13:55]} (16... Rfb8 $11) 17. h3 {[%emt 0:04:53]} (17. Qxa6 $16 Bd7 18. Qc4) 17... Bd7 $14 {[%emt 0:02:33]} 18. Bh2 {[%emt 0:02:03]} Rfe8 {[%emt 0:03:46]} 19. b3 {[%emt 0:07:00]} Bb6 {[%emt 0:04:08]} 20. a3 {[%emt 0:07:34]} Ng7 {[%emt 0:05:51]} 21. Na4 {[%emt 0:16:10]} Reb8 {[%emt 0:12:07]} ({Black should try} 21... Ba7 $11) 22. Qc3 {[%emt 0:02:38]} Ba7 {[%emt 0:04:36]} 23. e5 {[%emt 0:04:41]} Nf5 {[%emt 0:03:13] [#]} (23... h5 $11) 24. Qd3 {[%emt 0:04:10] White is more active.} ({White should play} 24. d5 $1 $16 {[%cal Rd5c6]}) 24... Be6 $1 $11 {[%emt 0:02:21]} 25. b4 {[%emt 0:01:28]} d5 {[%emt 0:00:54]} 26. Qc3 {[%emt 0:02:23]} h5 {[%emt 0:00:36][%cal Bh6h5,Bh5g4][%mdl 32] White must now prevent ...g4.} 27. Rd3 {[%emt 0:04:59]} (27. Qxc6 $2 g4 28. hxg4 hxg4 $19) (27. Kh1 $11 {remains equal.}) 27... g4 $17 {[%emt 0:00:44]} 28. hxg4 {[%emt 0:00:02]} hxg4 {[%emt 0:00:07]} 29. Nd2 {[%emt 0:00:05]} Kg7 $1 $36 {[%emt 0:00:54][%mdl 2048] Black has strong initiative.} 30. Nf1 {[%emt 0:03:25]} Rh8 {[%emt 0:00:21]} 31. Nc5 {[%emt 0:01:05]} (31. Red1 $142) 31... Bxc5 {[%emt 0:00:51]} 32. Qxc5 {[%emt 0:01:00]} Rh5 {[%emt 0:00:44] aiming for ...Rah8.} 33. Qc1 {[%emt 0:00:07] [#]} Ne7 {[%emt 0:02:33]} (33... Rah8 $1 $19 {Threatens to win with ...Qh7.} 34. Qd2 (34. Qxc6 $2 Rxh2 35. Nxh2 Qh7 $19) 34... g3 35. fxg3 Nh6) 34. Rc3 {[%emt 0:01:40]} Rah8 {[%emt 0:00:24]} 35. Qf4 {[%emt 0:00:01][%cal Of4f6]} Qh6 {[%emt 0:00:42] Inhibits Qf6+.} (35... Kf8 $17 {...Rh4 is the strong threat.} 36. Rc5 R8h6) 36. Qf6+ {[%emt 0:00:38]} Kf8 {[%emt 0:00:25][%cal Rh5h2,Bg7f8,Bf8e8,Be8d7][%mdl 32]} 37. Qxh6+ {[%emt 0:01:23]} R5xh6 {[%emt 0:00:09]} 38. f4 {[%emt 0:00:59] The position is equal.} Ke8 {[%emt 0:00:56]} 39. Bg3 {[%emt 0:00:45]} Kd7 {[%emt 0:00:26]} 40. Kf2 {[%emt 0:02:09]} Rh1 {[%emt 0:00:31]} 41. Ne3 {[%emt 0:02:01] Weighted Error Value: White=0.24 (precise) /Black=0.21 (precise)} 1/2-1/2

[Event "ESP-chT Honor Division 2022"]
[Site "Linares"]
[Date "2022.09.21"]
[Round "5.24"]
[White "Cano Sevilla, Ivan"]
[Black "Moreno Tejera, Emilio"]
[Result "1/2-1/2"]
[ECO "B76"]
[WhiteElo "2076"]
[BlackElo "2411"]
[Annotator "TA"]
[PlyCount "79"]
[EventDate "2022.09.17"]
[EventType "team-tourn"]
[EventCountry "ESP"]
[SourceTitle "playchess.com"]
[Source "ChessBase"]
[SourceQuality "1"]
[TimeControl "5400+30"]

{[%evp 24,79,27,36,52,43,61,64,90,85,85,84,91,25,51,51,95,90,81,91,114,106,105,81,140,116,107,127,104,62,154,140,155,147,211,195,200,194,243,221,304,293,288,48,61,0,275,247,284,212,201,0,277,63,56,0,244,0]} 1. e4 {[%emt 0:00:06]} c5 {[%emt 0:00:57]} 2. Nf3 {[%emt 0:00:08]} d6 {[%emt 0:00:39]} 3. d4 {[%emt 0:00:09]} cxd4 {[%emt 0:00:16]} 4. Nxd4 {[%emt 0:00:04]} Nf6 {[%emt 0:00:09]} 5. Nc3 {[%emt 0:00:03]} g6 {[%emt 0:00:10]} 6. Be3 {[%emt 0:00:50]} Bg7 {[%emt 0:00:22]} 7. f3 {[%emt 0:01:04]} O-O {[%emt 0:00:32]} 8. Qd2 {[%emt 0:01:14]} Nc6 {[%emt 0:00:11]} 9. O-O-O {[%emt 0:00:29]} d5 {[%emt 0:00:33]} 10. exd5 {[%emt 0:05:11]} Nxd5 {[%emt 0:00:45]} 11. Nxc6 {[%emt 0:05:25]} bxc6 {[%emt 0:01:08]} 12. Bd4 {[%emt 0:06:19]} Bxd4 {[%emt 0:14:13]} 13. Qxd4 {[%emt 0:00:18][%cal Rc3d5]} Qc7 {[%emt 0:00:25] B76: Sicilian Dragon: Yugoslav Attack, 9 g4 and 9 0-0-0.} 14. h4 {[%emt 0:27:28]} ({Much weaker is} 14. Nxd5 cxd5 15. Kb1 Rd8 $11) 14... Be6 {[%emt 0:25:24] [#]} 15. h5 $146 {[%emt 0:11:02]} ({Predecessor:} 15. Nxd5 Bxd5 16. h5 Rab8 17. hxg6 fxg6 18. Bc4 e6 19. Rh4 Qb6 20. Qxb6 axb6 21. b3 {½-½ (43) Guedez,A (2295)-Tirado Veliz,H Caracas 1999}) 15... Qf4+ {[%emt 0:10:54] White is slightly better.} 16. Qxf4 {[%emt 0:00:17]} Nxf4 {[%emt 0:00:07]} 17. hxg6 {[%emt 0:00:33]} hxg6 {[%emt 0:00:09]} 18. g3 {[%emt 0:08:52]} (18. Ne4 $16) 18... Nd5 {[%emt 0:13:23]} 19. Ne4 {[%emt 0:02:18]} Ne3 {[%emt 0:00:55][%csl LRa2,LRd1]} 20. Re1 {[%emt 0:04:20]} Nxf1 {[%emt 0:00:43]} 21. Rhxf1 {[%emt 0:00:27]} Rad8 {[%emt 0:09:33]} 22. Ng5 {[%emt 0:03:04]} Bc4 {[%emt 0:03:08]} 23. Rf2 {[%emt 0:01:20]} Rd7 {[%emt 0:05:01]} (23... Rfe8 $142) 24. b3 {[%emt 0:00:24]} f6 {[%emt 0:00:14] [#]} 25. Ne4 $1 {[%emt 0:01:03]} Bf7 {[%emt 0:00:33]} 26. Rfe2 {[%emt 0:06:54]} Rdd8 {[%emt 0:04:42]} (26... Rc8 $1 $14) 27. f4 $16 {[%emt 0:00:30]} Rfe8 {[%emt 0:00:48] [#]} 28. c4 $1 {[%emt 0:00:48]} Kf8 {[%emt 0:01:01]} (28... Rd3 $16 {was worth a try.} 29. Nxf6+ exf6 30. Rxe8+ Bxe8) 29. Kc2 {[%emt 0:00:50]} Rd7 {[%emt 0:01:56]} 30. Nc5 {[%emt 0:00:23]} Rd6 {[%emt 0:00:30]} (30... Rc7 $142 31. g4 Kg7) 31. Kc3 $18 {[%emt 0:01:45]} Bg8 {[%emt 0:00:44]} 32. g4 {[%emt 0:02:05]} Bf7 {[%emt 0:01:18]} 33. Nb7 $2 {[%emt 0:01:23]} (33. g5 $18) 33... Rd7 $14 {[%emt 0:00:11]} 34. Nc5 {[%emt 0:00:02] White is more active.} (34. Na5 $1 $14) 34... Rd6 $1 $18 {[%emt 0:00:35]} 35. a3 {[%emt 0:06:42]} Bg8 {[%emt 0:00:20]} 36. Na6 {[%emt 0:00:16]} Rd7 {[%emt 0:00:38]} 37. Nc5 {[%emt 0:00:02]} Rd6 {[%emt 0:00:16]} 38. Nb7 $2 {[%emt 0:00:53]} (38. g5 $18) 38... Rd7 $14 {[%emt 0:00:06]} 39. Nc5 {[%emt 0:00:02]} (39. Na5 $1 $14) 39... Rd6 $1 $18 {[%emt 0:00:09]} 40. Nb7 $2 {Weighted Error Value: White=0.48/Black=0.20 (precise)} ({Better is} 40. g5 $18) 1/2-1/2

[Event "ESP-chT Honor Division 2022"]
[Site "Linares"]
[Date "2022.09.22"]
[Round "6.1"]
[White "Shirov, Alexei"]
[Black "Gines Esteo, Pedro Antonio"]
[Result "1/2-1/2"]
[ECO "A28"]
[WhiteElo "2673"]
[BlackElo "2505"]
[Annotator "TA"]
[PlyCount "92"]
[EventDate "2022.09.17"]
[EventType "team-tourn"]
[EventCountry "ESP"]
[SourceTitle "playchess.com"]
[Source "ChessBase"]
[SourceQuality "1"]
[TimeControl "5400+30"]

{[%evp 9,92,2,69,58,55,58,70,75,73,74,64,71,83,77,99,92,109,115,118,106,95,110,103,27,23,24,24,20,30,16,16,0,87,79,68,23,23,18,19,21,17,0,53,48,91,92,94,94,93,92,87,14,14,14,14,14,14,14,14,14,14,14,15,15,17,17,17,14,14,8,14,8,8,8,8,8,8,8,8,0,0,0,0,0,0]} 1. c4 {[%emt 0:00:02]} e5 {[%emt 0:05:02]} 2. Nc3 {[%emt 0:00:10]} Nf6 {[%emt 0:03:57]} 3. Nf3 {[%emt 0:02:40]} Nc6 {[%emt 0:00:05]} 4. e4 {[%emt 0:06:07]} h6 {[%emt 0:04:00]} 5. Be2 {[%emt 0:08:21]} Bc5 {[%emt 0:01:48] [#]} ({Black should try} 5... Bb4 $11) 6. Nxe5 $1 $14 {[%emt 0:02:44] A28: English Opening: Four Knights Variation.} Nxe5 {[%emt 0:00:11]} 7. d4 {[%emt 0:00:08] [#]} Bb4 $146 {[%emt 0:00:20]} ({Predecessor:} 7... Bxd4 8. Qxd4 Nc6 9. Qd1 O-O 10. O-O Re8 11. f3 d6 12. b3 Bd7 {1-0 (36) Dong,R (1571)-Sousa,D (1375) Ferreira do Alentejo 2019}) 8. dxe5 {[%emt 0:23:27] White is slightly better.} Nxe4 {[%emt 0:00:17]} 9. Qd3 {[%emt 0:00:09]} Nxc3 {[%emt 0:01:23]} 10. bxc3 {[%emt 0:00:05]} Be7 {[%emt 0:06:09]} 11. Qg3 {[%emt 0:01:06] White is much more active. The black rooks are badly placed.} g6 {[%emt 0:12:13]} 12. O-O {[%emt 0:00:30]} d6 {[%emt 0:00:58]} 13. Rd1 {[%emt 0:00:36]} Be6 {[%emt 0:00:38]} 14. Bf4 {[%emt 0:21:53][%cal Re5d6]} Rc8 {[%emt 0:04:58]} 15. exd6 {[%emt 0:08:56]} cxd6 {[%emt 0:00:14]} 16. Bxd6 {[%emt 0:00:33]} ({White should play} 16. Rxd6 $16 Bxd6 17. Bxd6) 16... Bxd6 $11 {[%emt 0:01:15]} 17. Rxd6 {[%emt 0:00:11]} Qg5 {[%emt 0:08:01]} 18. Qf3 {[%emt 0:00:22]} Qe7 {[%emt 0:07:05]} 19. Rad1 {[%emt 0:01:21]} O-O {[%emt 0:05:39]} 20. Qe3 {[%emt 0:00:10]} b6 {[%emt 0:01:33]} (20... Rfe8 $1 $11) 21. Bg4 $36 {[%emt 0:08:54][%cal Rd6e6][%mdl 2048] White is in control.} Rfd8 {[%emt 0:02:28]} 22. R6d5 {[%emt 0:00:26][%cal Bd6d5,Bd5e5,Be5e6][%mdl 32]} ({Inferior is} 22. Bxe6 Rxd6 23. Rxd6 Qxd6 $17) 22... Re8 $1 {[%emt 0:04:21]} 23. Re5 {[%emt 0:00:16] Black must now prevent Bxe6.} Qf6 {[%emt 0:00:39][%cal Of6e5]} 24. f4 {[%emt 0:09:17]} Rxc4 {[%emt 0:04:19]} 25. Rd4 {[%emt 0:00:09] Strongly threatening Rxc4.} (25. Rf1 {is more complex.} Rcc8 26. f5 Bd7 27. Rxe8+ Rxe8 28. Qxh6 Bb5 29. Rc1) 25... Rxd4 {[%emt 0:05:07]} ({Better is} 25... Rc6 $11) 26. cxd4 $14 {[%emt 0:00:05] Threatens to win with d5.} Rd8 {[%emt 0:00:08] Prevents d5.} 27. Bxe6 {[%emt 0:00:09]} fxe6 {[%emt 0:00:02]} 28. Rxe6 {[%emt 0:02:37]} Qxd4 {[%emt 0:00:05]} 29. Rxg6+ {[%emt 0:00:04]} Kh7 {[%emt 0:04:39] [#]} 30. Qxd4 {[%emt 0:02:34]} (30. Re6 $1 $16) 30... Rxd4 $16 {[%emt 0:00:02][%mdl 4096] Endgame KR-KR. The position is equal.} 31. Re6 {[%emt 0:00:09]} Ra4 {[%emt 0:02:53]} 32. Re2 {[%emt 0:00:13]} Rxf4 {[%emt 0:01:49]} 33. Re7+ {[%emt 0:00:09]} Kg6 {[%emt 0:00:03]} 34. Rxa7 {[%emt 0:00:04]} Rc4 {[%emt 0:00:13]} 35. Kf2 {[%emt 0:01:49]} Rc2+ {[%emt 0:00:47]} 36. Kg3 {[%emt 0:00:14]} Rc3+ {[%emt 0:00:33]} 37. Kh4 {[%emt 0:00:13]} Rc2 {[%emt 0:00:11]} 38. Kh3 {[%emt 0:00:30]} h5 {[%emt 0:00:24]} 39. a4 {[%emt 0:01:32] aiming for Ra6.} Ra2 {[%emt 0:00:19]} 40. g3 {[%emt 0:00:51]} Kg5 {[%emt 0:00:47]} 41. Ra6 {[%emt 0:00:19]} Rb2 {[%emt 0:01:51]} 42. Ra8 {[%emt 0:00:15]} Ra2 {[%emt 0:01:23]} 43. Rg8+ {[%emt 0:00:19]} Kh6 {[%emt 0:00:11]} 44. g4 {[%emt 0:00:13]} hxg4+ {[%emt 0:00:07]} 45. Rxg4 {[%emt 0:00:03]} b5 {[%emt 0:00:12]} 46. axb5 {[%emt 0:00:05] And now Rb4 would win.} Rb2 {[%emt 0:00:06] Inhibits Rb4.  Weighted Error Value: White=0.11 (very precise) /Black=0.10 (very precise)} 1/2-1/2